lending/lending_fUSD_20240401
["ID","MTS","AMOUNT","RATE_DAILY","PERIOD"]
[321233770,1712004649737,-1400.0,0.000609,22]
[321233771,1712004649749,-510.05943121,0.000609,2]
[321233772,1712004649759,-207.42342528,0.000609,120]
[321233773,1712004649771,-649.2313814,0.000609,2]
[321233774,1712004649781,-224.07354535,0.000609,2]
[321233775,1712004649792,-7896.5233107,0.000609,2]
[321233776,1712004649802,-151.70009463,0.00060911,120]
[321233777,1712004649812,-188.460668,0.00060915,30]
[321233778,1712004649822,-151.0,0.00060932,120]
[321233779,1712004649833,-1429.25000458,0.00060946,40]
[321233780,1712004649843,-200.0,0.00060987,3]
[321233781,1712004649854,-200.0,0.00060987,2]
[321233782,1712004649864,-100000.0,0.00061,61]
[321233783,1712004649874,-35493.57111495,0.00061,120]
[321233784,1712004649884,-2148263.63943175,0.00061,120]
[321233785,1712004649903,-5917.76994183,0.00061,120]
[321233786,1712004649968,-221.42655598,0.00049989,4]
[321233787,1712004649977,-250.0,0.0006064,2]
[321233788,1712004649987,-19040.73587714,0.00061,120]
[321233789,1712004650000,-118680.20210055,0.00061,120]
[321233790,1712004650014,-3166.50010804,0.00061,120]
[321233791,1712004650026,-966.10130958,0.00061,120]
[321233792,1712004650097,-373.5068174,0.00032899,4]
[321233793,1712004670527,10545.0,0.00025,2]
[321233794,1712004670555,3043237.28188019,0.00025,2]
[321233795,1712004675097,2099.13107896,0.0004358,120]
[321233796,1712004676361,693.26876466,0.0004358,30]
[321233797,1712004678772,158.34642619,0.0004358,30]
[321233798,1712004679697,2588.11866635,0.0004358,120]
[321233799,1712004683155,1967.76996265,0.0004358,120]
[321233800,1712004684069,830.56136963,0.0004358,30]
[321233801,1712004685265,1104.56233826,0.0004358,120]
[321233802,1712004685656,2043.74845702,0.0004358,30]
[321233803,1712004688963,1408.94827666,0.0004358,30]
[321233804,1712004690171,3353.54800117,0.0004358,30]
[321233805,1712004690903,1237.44344778,0.0004358,30]
[321233806,1712004693833,609.23306,0.0004358,120]
[321233807,1712004696350,3107.26099464,0.0004358,30]
[321233808,1712004699558,590.23267867,0.0004358,120]
[321233809,1712004703297,345.84817701,0.0004358,120]
[321233810,1712004704006,1714.20115734,0.0004358,30]
[321233811,1712004706886,2293.54112594,0.0004358,120]
[321233812,1712004708137,1804.12245286,0.0004358,120]
[321233813,1712004715266,649.23225081,0.0004358,120]
[321233814,1712004720570,2750.52244703,0.0004358,30]
[321233819,1712004724678,1107.33246449,0.0004358,120]
[321233820,1712004727117,1014.19296185,0.0004358,120]
[321233821,1712004728964,871.59191666,0.0004358,30]
[321233822,1712004730608,226.96158566,0.0004358,60]
[321233823,1712004735434,382.69571569,0.0004358,120]
[321233824,1712004756131,522.08731271,0.0004358,30]
[321233825,1712004802036,580.52400073,0.0004358,30]
[321233826,1712004808800,2920.43413071,0.0004358,120]
[321233827,1712004810608,1365.96620729,0.0004358,120]
[321233828,1712004813161,815.12975131,0.0004358,120]
[321233829,1712004818466,596.28105769,0.0004358,30]
[321233830,1712004822548,2255.30115363,0.0004358,120]
[321233831,1712004824030,238.28641326,0.0004358,120]
[321233832,1712004824828,162.13410105,0.0004358,30]
[321233833,1712004825451,208.34451868,0.0004358,120]
[321233834,1712004826664,538.89669505,0.0004358,120]
[321233835,1712004828302,262.69509994,0.0004358,30]
[321233836,1712004829704,151.91763195,0.0004358,49]
[321233837,1712004830274,151.91763195,0.0004358,49]
[321233839,1712004830809,851.59809623,0.0004358,120]
[321233840,1712004830884,151.91763195,0.0004358,49]
[321233841,1712004831331,1675.23699903,0.0004358,120]
[321233842,1712004834821,431.00777158,0.0004358,120]
[321233843,1712004837573,159.24983484,0.0004358,30]
[321233844,1712004839169,954257.49985846,0.00025,2]
[321233845,1712004841794,431.2127598,0.0004358,30]
[321233846,1712004847129,3152.67709094,0.0004358,30]
[321233849,1712004866111,928.43839155,0.0004358,120]
[321233850,1712004868904,1352.8185946,0.0004358,120]
[321233851,1712004870248,266.88330755,0.0004358,120]
[321233852,1712004870326,823.8765173,0.0004358,30]
[321233853,1712004870743,700.07817091,0.0004358,30]
[321233854,1712004871732,4358.98525906,0.0004358,120]
[321233855,1712004871966,3352.57518906,0.0004358,120]
[321233856,1712004872358,901.45815057,0.0004358,120]
[321233857,1712004872499,476.8163453,0.0004358,30]
[321233858,1712004872541,636.45386315,0.0004358,120]
[321233859,1712004872607,492.17781115,0.0004358,30]
[321233860,1712004873408,255.28509567,0.0004358,120]
[321233861,1712004873596,1039.03297321,0.0004358,30]
[321233865,1712004877776,2542.39353808,0.0002,2]
[321233876,1712004933583,921233.67002282,0.0002,2]
[321233877,1712004955584,921233.67002282,0.0002,2]
[321233879,1712004975587,921233.67002282,0.0002,2]
[321233880,1712004993590,921233.67002282,0.0002,2]
[321233881,1712005009594,560615.54681729,0.0002,2]
[321233891,1712005390825,-4397.82187569,0.0003,4]
[321233894,1712005637206,-5151.617464,0.00029547,2]
[321233895,1712005637227,-169.09783475,0.00029696,2]
[321233896,1712005637249,-4454.43839689,0.00029795,2]
[321233897,1712005637270,-1648.3787,0.00029796,2]
[321233898,1712005637305,-236.18168364,0.00029998,2]
[321233899,1712005637327,-310.8781278,0.00029998,2]
[321233900,1712005637349,-155.0,0.00029999,2]
[321233901,1712005637369,-295.03140152,0.0003,2]
[321233902,1712005637390,-1500.0,0.0003,2]
[321233903,1712005637411,-155.0,0.0003,2]
[321233904,1712005637432,-33041.49007938,0.0003,4]
[321233905,1712005637452,-155.0,0.00032899,4]
[321233906,1712005637472,-361.96362888,0.00034862,4]
[321233907,1712005637493,-169.09783471,0.00035513,2]
[321233908,1712005637513,-499.99,0.00037619,2]
[321233909,1712005637535,-154.63,0.00037808,2]
[321233910,1712005637555,-159.53,0.00037808,2]
[321233911,1712005637575,-182.87884621,0.0003922,4]
[321233912,1712005637595,-999.99,0.0003974,2]
[321233913,1712005637615,-2593.13,0.0003974,2]
[321233914,1712005637634,-14487.81709258,0.0004,2]
[321233915,1712005637655,-368.69921281,0.0004,2]
[321233916,1712005637674,-1226.76518438,0.0004,2]
[321233917,1712005637697,-169.09783471,0.0004133,2]
[321233918,1712005637718,-323.39,0.00043128,2]
[321233919,1712005637739,-1000.0,0.0004344,5]
[321233920,1712005637762,-264.90152903,0.0004348,11]
[321233921,1712005637786,-1196.66,0.0004357,10]
[321233922,1712005637806,-435.60504467,0.00043578,4]
[321233923,1712005637825,-155.45988946,0.00043578,4]
[321233924,1712005637846,-185.46367257,0.00043578,2]
[321233925,1712005637867,-1063.97060893,0.00043578,4]
[321233926,1712005637887,-7746.07556118,0.00043578,4]
[321233927,1712005637908,-281.76622949,0.00043578,4]
[321233928,1712005637929,-1401.79529549,0.00043578,4]
[321233929,1712005637949,-4704.44,0.00043579,4]
[321233930,1712005637970,-1015.77749665,0.00043579,60]
[321233931,1712005637991,-2827.82158598,0.0004358,4]
[321233932,1712005638012,-2800.96,0.00044888,2]
[321233933,1712005638033,-167.83,0.00044932,2]
[321233934,1712005638053,-65.46407832,0.00044959,2]
[321233935,1712005640084,-434.53592168,0.00044959,2]
[321233936,1712005640105,-185.8577014,0.00045,5]
[321233948,1712005748104,-15094.61677293,0.0003,4]
[321233949,1712005751102,-1048.51123729,0.0003,4]
[321233950,1712005751124,-1581.72446271,0.00045,5]
[321233959,1712005831685,-396.34728222,0.00043441,7]
[321233960,1712005831695,-495.11581759,0.00043441,7]
[321233961,1712005831704,-644.51774319,0.00043441,10]
[321233962,1712005831714,-451.09220997,0.00043441,7]
[321233963,1712005831724,-1401.13214542,0.00043441,30]
[321233964,1712005831794,-500.77266238,0.00043441,30]
[321233965,1712005831807,-1084.12711502,0.00043441,30]
[321233966,1712005831816,-208.82508103,0.00043441,30]
[321233967,1712005831830,-2582.22924667,0.00043441,120]
[321233968,1712005831839,-1082.6004131,0.00043441,30]
[321233969,1712005831848,-3467.85079409,0.00043441,120]
[321233970,1712005831857,-530.2888169,0.00043441,30]
[321233971,1712005831866,-207.54089052,0.00043441,7]
[321233972,1712005831875,-416.5078598,0.00043441,30]
[321233973,1712005831884,-756.0,0.00043441,120]
[321233974,1712005831893,-280.32727805,0.00043441,30]
[321233975,1712005831902,-845.41821221,0.00043441,120]
[321233976,1712005831911,-718.75356316,0.00043441,120]
[321233977,1712005831922,-187.0,0.00043441,30]
[321233978,1712005831931,-151.91763195,0.00043441,49]
[321233979,1712005831940,-151.91763195,0.00043441,49]
[321233980,1712005831949,-255.04644779,0.00043441,30]
[321233981,1712005831958,-3146.86046828,0.00045,5]
[321233982,1712005831975,-5492.44675804,0.00045,5]
[321233983,1712005831985,-168.36753644,0.00045,7]
[321233984,1712005831995,-175.13331947,0.00045,2]
[321233985,1712005832004,-195.35,0.00045197,2]
[321233986,1712005832014,-173.86,0.00045292,2]
[321233987,1712005832024,-250.0,0.00045302,120]
[321233988,1712005832034,-323.39,0.00045392,2]
[321233989,1712005832044,-190.6,0.00045871,2]
[321233990,1712005832055,-165.73,0.0004594,2]
[321233991,1712005832065,-867.34,0.00045997,120]
[321233993,1712005832075,-169.09783471,0.00047146,2]
[321233995,1712005832084,-349.82,0.00047169,2]
[321233996,1712005832095,-380.0,0.00047189,2]
[321233997,1712005832107,-163.96,0.00047484,2]
[321233998,1712005832116,-610.24616245,0.00047618,2]
[321233999,1712005832125,-2800.96,0.00047628,2]
[321234000,1712005832135,-323.39,0.00047656,2]
[321234001,1712005832144,-151.0,0.00048,120]
[321234002,1712005832154,-214.69191633,0.00048267,2]
[321234003,1712005832163,-311.17050461,0.00048268,4]
[321234004,1712005832173,-961.88,0.0004832,2]
[321234005,1712005832183,-2751.0,0.0004846,120]
[321234006,1712005832193,-162.07,0.00048466,15]
[321234007,1712005832203,-154.25,0.00048674,2]
[321234008,1712005832213,-926.22,0.00048885,120]
[321234009,1712005832223,-1835.86234145,0.00048919,2]
[321234019,1712005837648,-2644.56953041,0.00048919,2]
[321234039,1712005837874,-11075.21692474,0.00048919,2]
[321234040,1712005838037,-8344.3512034,0.00048919,2]
[321234041,1712005838047,-250.0,0.00048947,120]
[321234042,1712005838057,-179.0,0.00048947,2]
[321234043,1712005838066,-160.57,0.00048958,2]
[321234044,1712005838075,-1028.634789,0.00049,2]
[321234045,1712005838085,-160.57,0.00049241,2]
[321234046,1712005838094,-160.57,0.00049525,2]
[321234047,1712005838104,-160.57,0.00049808,2]
[321234048,1712005838113,-323.39,0.0004992,2]
[321234049,1712005838123,-2673.78036216,0.0005,30]
[321234050,1712005838132,-151.0,0.0005,120]
[321234051,1712005838141,-160.57,0.00050092,2]
[321234053,1712005838150,-2800.96,0.00050368,2]
[321234055,1712005838159,-160.57,0.00050375,2]
[321234057,1712005838168,-160.57,0.00050658,2]
[321234059,1712005838179,-160.57,0.00050942,2]
[321234061,1712005838188,-160.57,0.00051225,2]
[321234062,1712005838197,-163.96,0.00051403,2]
[321234063,1712005838206,-160.57,0.00051509,2]
[321234066,1712005838223,-151.0,0.00051808,120]
[321234068,1712005838235,-4943.64948352,0.00051984,2]
[321234070,1712005838244,-586.37,0.0005199,10]
[321234072,1712005838253,-81736.03080041,0.00052,2]
[321234073,1712005838262,-372.22993161,0.00052084,2]
[321234074,1712005838272,-323.39,0.00052184,2]
[321234076,1712005838281,-3059.0,0.000524,3]
[321234077,1712005838290,-162.07,0.00052575,120]
[321234079,1712005838299,-1500.0,0.000529,2]
[321234081,1712005838308,-169.09783471,0.00052963,2]
[321234083,1712005838318,-251.71,0.00052999,120]
[321234086,1712005838327,-20752.06983302,0.00053,30]
[321234088,1712005838337,-4943.6494835,0.00053197,2]
[321234090,1712005838347,-372.22993155,0.00053286,2]
[321234092,1712005838356,-3370.51364512,0.00054,2]
[321234094,1712005838365,-961.88,0.0005436,120]
[321234096,1712005838375,-4943.6494835,0.0005441,2]
[321234098,1712005838384,-323.39,0.00054447,2]
[321234100,1712005838393,-372.22993155,0.00054488,2]
[321234102,1712005838403,-4000.0,0.00054584,31]
[321234104,1712005838413,-500.58593811,0.00054794,2]
[321234106,1712005838423,-500.0,0.00054794,2]
[321234108,1712005838433,-500.0,0.00054794,120]
[321234110,1712005838443,-300.0,0.00054794,2]
[321234112,1712005838452,-252.17108939,0.00054794,2]
[321234114,1712005838462,-772.49811252,0.00054794,2]
[321234116,1712005838471,-500.0,0.00054794,2]
[321234118,1712005838482,-500.0,0.00054794,2]
[321234120,1712005838491,-503.19150413,0.00054794,7]
[321234122,1712005838500,-500.0,0.00054794,2]
[321234124,1712005838510,-500.0,0.00054794,120]
[321234126,1712005838519,-500.0,0.00054794,120]
[321234128,1712005838528,-180.41321987,0.00054794,120]
[321234130,1712005838537,-500.0,0.00054794,120]
[321234132,1712005838546,-1965.33,0.00054794,120]
[321234135,1712005838555,-2633.51,0.00054794,120]
[321234137,1712005838565,-500.0,0.00054794,120]
[321234139,1712005838574,-500.0,0.00054794,2]
[321234141,1712005838583,-8011.02,0.00054794,120]
[321234142,1712005838592,-500.0,0.00054794,120]
[321234144,1712005838602,-500.0,0.00054794,120]
[321234147,1712005838611,-500.0,0.00054794,120]
[321234149,1712005838621,-500.0,0.00054794,120]
[321234151,1712005838630,-500.0,0.000548,30]
[321234153,1712005838639,-300.0,0.00055067,2]
[321234155,1712005838649,-300.0,0.00055067,2]
[321234157,1712005838658,-300.0,0.00055067,2]
[321234159,1712005838667,-300.0,0.00055067,2]
[321234160,1712005838678,-300.0,0.00055067,2]
[321234163,1712005838687,-300.0,0.00055067,2]
[321234165,1712005838697,-300.0,0.00055067,2]
[321234167,1712005838706,-500.0,0.00055067,2]
[321234169,1712005838716,-509.26153766,0.00055068,2]
[321234170,1712005838730,-500.0,0.00055068,2]
[321234173,1712005838740,-183.79,0.00055068,2]
[321234175,1712005838749,-1965.33,0.00055068,120]
[321234177,1712005838759,-2633.51,0.00055068,120]
[321234179,1712005838769,-500.0,0.00055068,120]
[321234181,1712005838779,-8011.02,0.00055068,120]
[321234183,1712005838788,-500.0,0.00055068,120]
[321234185,1712005838798,-500.0,0.00055068,120]
[321234187,1712005838808,-500.0,0.00055068,120]
[321234189,1712005838818,-163.96,0.00055321,2]
[321234191,1712005838826,-311.45,0.00055342,2]
[321234193,1712005838835,-1965.33,0.00055342,120]
[321234194,1712005838844,-2633.51,0.00055342,120]
[321234197,1712005838854,-500.0,0.00055342,120]
[321234199,1712005838863,-8011.02,0.00055342,120]
[321234201,1712005838872,-500.0,0.00055342,120]
[321234203,1712005838881,-500.0,0.00055342,120]
[321234205,1712005838891,-1500.0,0.000556,90]
[321234207,1712005838900,-1965.33,0.00055616,120]
[321234208,1712005838910,-2633.51,0.00055616,120]
[321234210,1712005838918,-500.0,0.00055616,120]
[321234212,1712005838929,-8011.02,0.00055616,120]
[321234214,1712005838938,-500.0,0.00055616,120]
[321234217,1712005838947,-500.0,0.00055616,120]
[321234219,1712005838957,-151.0,0.00055616,120]
[321234221,1712005838966,-4943.6494835,0.00055623,2]
[321234223,1712005838975,-372.22993155,0.00055689,2]
[321234225,1712005838984,-1965.33,0.0005589,120]
[321234227,1712005838993,-2633.51,0.0005589,120]
[321234229,1712005839002,-500.0,0.0005589,120]
[321234231,1712005839012,-8011.02,0.0005589,120]
[321234233,1712005839021,-500.0,0.0005589,120]
[321234235,1712005839030,-500.0,0.0005589,120]
[321234237,1712005839039,-1000.0,0.00056162,7]
[321234239,1712005839048,-1000.0,0.00056162,7]
[321234241,1712005839058,-1000.0,0.00056162,7]
[321234243,1712005839067,-1000.0,0.00056162,7]
[321234245,1712005839077,-1000.0,0.00056162,7]
[321234247,1712005839086,-1000.0,0.00056162,7]
[321234249,1712005839095,-1000.0,0.00056162,7]
[321234251,1712005839104,-1000.0,0.00056162,7]
[321234253,1712005839114,-1000.0,0.00056162,7]
[321234255,1712005839122,-246.0,0.00056162,7]
[321234257,1712005839131,-194.24799481,0.00056162,4]
[321234259,1712005839140,-806.30646681,0.00056162,4]
[321234261,1712005839150,-712.61418707,0.00056163,4]
[321234263,1712005839159,-2340.69346805,0.00056163,4]
[321234265,1712005839168,-449.91962443,0.00056163,4]
[321234267,1712005839177,-1965.33,0.00056164,120]
[321234269,1712005839186,-2633.51,0.00056164,120]
[321234271,1712005839195,-500.0,0.00056164,120]
[321234273,1712005839204,-8011.02,0.00056164,120]
[321234275,1712005839213,-500.0,0.00056164,120]
[321234277,1712005839222,-500.0,0.00056164,120]
[321234279,1712005839232,-1965.33,0.00056438,120]
[321234281,1712005839241,-2633.51,0.00056438,120]
[321234283,1712005839251,-500.0,0.00056438,120]
[321234285,1712005839260,-8011.02,0.00056438,120]
[321234287,1712005839270,-500.0,0.00056438,120]
[321234289,1712005839279,-500.0,0.00056438,120]
[321234291,1712005839289,-162.07,0.00056685,120]
[321234293,1712005839298,-323.39,0.00056711,2]
[321234295,1712005839308,-1965.33,0.00056712,120]
[321234297,1712005839317,-2633.51,0.00056712,120]
[321234299,1712005839327,-500.0,0.00056712,120]
[321234301,1712005839336,-8011.02,0.00056712,120]
[321234303,1712005839346,-500.0,0.00056712,120]
[321234305,1712005839355,-4943.6494835,0.00056836,2]
[321234307,1712005839365,-372.22993155,0.00056891,2]
[321234309,1712005839374,-1965.33,0.00056986,120]
[321234311,1712005839383,-2633.51,0.00056986,120]
[321234313,1712005839393,-500.0,0.00056986,120]
[321234315,1712005839402,-8011.02,0.00056986,120]
[321234317,1712005839413,-500.0,0.00056986,120]
[321234320,1712005839422,-867.34,0.0005723,120]
[321234322,1712005839436,-1965.33,0.0005726,120]
[321234323,1712005839445,-2633.51,0.0005726,120]
[321234326,1712005839458,-500.0,0.0005726,120]
[321234328,1712005839467,-8011.02,0.0005726,120]
[321234330,1712005839477,-500.0,0.0005726,120]
[321234332,1712005839486,-1965.33,0.00057534,120]
[321234334,1712005839496,-2633.51,0.00057534,120]
[321234336,1712005839506,-500.0,0.00057534,120]
[321234338,1712005839515,-8011.02,0.00057534,120]
[321234340,1712005839525,-500.0,0.00057534,120]
[321234342,1712005839534,-152.47,0.000577,9]
[321234344,1712005839544,-152.47,0.000577,9]
[321234346,1712005839553,-152.47,0.000577,9]
[321234348,1712005839562,-152.47,0.000577,9]
[321234351,1712005839572,-152.47,0.000577,9]
[321234354,1712005839582,-152.47,0.000577,9]
[321234356,1712005839591,-152.47,0.000577,9]
[321234358,1712005839601,-152.47,0.000577,9]
[321234360,1712005839610,-165.4836938,0.00057708,2]
[321234362,1712005839619,-1965.33,0.00057808,120]
[321234363,1712005839629,-2633.51,0.00057808,120]
[321234364,1712005839638,-500.0,0.00057808,120]
[321234365,1712005839648,-8011.02,0.00057808,120]
[321234366,1712005839657,-500.0,0.00057808,120]
[321234367,1712005839667,-4312.850094,0.00058,30]
[321234368,1712005839678,-4731.65770037,0.00058,120]
[321234369,1712005839688,-4943.6494835,0.00058048,2]
[321234370,1712005839697,-1965.33,0.00058082,120]
[321234371,1712005839706,-2633.51,0.00058082,120]
[321234372,1712005839715,-500.0,0.00058082,120]
[321234373,1712005839730,-8011.02,0.00058082,120]
[321234374,1712005839741,-500.0,0.00058082,120]
[321234375,1712005839751,-372.22993155,0.00058093,2]
[321234376,1712005839761,-317.07608645,0.00058256,2]
[321234377,1712005839770,-1965.33,0.00058356,120]
[321234378,1712005839781,-2633.51,0.00058356,120]
[321234379,1712005839790,-500.0,0.00058356,120]
[321234380,1712005839800,-8011.02,0.00058356,120]
[321234381,1712005839810,-500.0,0.00058356,120]
[321234382,1712005839819,-600.0,0.000586,21]
[321234383,1712005839828,-1965.33,0.0005863,120]
[321234384,1712005839839,-2633.51,0.0005863,120]
[321234385,1712005839848,-500.0,0.0005863,120]
[321234386,1712005839858,-8011.02,0.0005863,120]
[321234387,1712005839867,-500.0,0.0005863,120]
[321234389,1712005839876,-1200.0,0.000587,21]
[321234391,1712005839885,-357.3125012,0.0005878,37]
[321234393,1712005839895,-169.09783471,0.0005878,2]
[321234395,1712005839904,-165.4836938,0.00058788,2]
[321234397,1712005839913,-170.01981041,0.00058788,2]
[321234399,1712005839923,-1900.0,0.000588,21]
[321234401,1712005839933,-192.94649434,0.00058868,7]
[321234403,1712005839942,-151.99,0.00058868,120]
[321234405,1712005839953,-151.99,0.0005887,120]
[321234406,1712005839964,-151.99,0.0005887,120]
[321234407,1712005839974,-242.31153954,0.00058875,2]
[321234408,1712005839983,-1938.49231632,0.00058877,2]
[321234409,1712005839992,-335043.7182042,0.00058878,2]
[321234410,1712005840006,-205020.57344752,0.0005888,36]
[321234411,1712005840015,-1708258.69614246,0.0005888,7]
[321234412,1712005840025,-5691.0,0.00058885,120]
[321234413,1712005840034,-1195.0,0.00058885,2]
[321234414,1712005840044,-43048.0,0.00058885,120]
[321234415,1712005840053,-228.663,0.00058885,2]
[321234416,1712005840062,-2454.0,0.00058885,120]
[321234417,1712005840072,-1733.944,0.00058885,120]
[321234418,1712005840082,-1178.0,0.00058885,120]
[321234419,1712005840091,-1049.0,0.00058885,120]
[321234420,1712005840100,-1999.999997,0.00058888,120]
[321234421,1712005840107,-5000.0,0.000589,120]
[321234422,1712005840115,-643.88,0.000589,30]
[321234427,1712005840297,-547.5,0.000589,30]
[321234428,1712005840332,-280.56,0.000589,14]
[321234429,1712005840341,-2500.0,0.000589,21]
[321234430,1712005840351,-1965.33,0.00058904,120]
[321234431,1712005840360,-2633.51,0.00058904,120]
[321234432,1712005840370,-500.0,0.00058904,120]
[321234433,1712005840379,-8011.02,0.00058904,120]
[321234434,1712005840388,-500.0,0.00058904,120]
[321234435,1712005840398,-67271.28365728,0.00058922,7]
[321234436,1712005840407,-323.39,0.00058975,2]
[321234437,1712005840417,-45938.68585903,0.00058998,2]
[321234438,1712005840427,-728.7388942,0.00059,60]
[321234439,1712005840435,-81222.21384003,0.00059,20]
[321234440,1712005840445,-855.77232674,0.00059,120]
[321234441,1712005840454,-2500.0,0.00059,120]
[321234442,1712005840463,-478.29,0.00059,120]
[321234443,1712005840473,-42884.5310984,0.0005901,120]
[321234444,1712005840482,-568.20777816,0.0005909,2]
[321234445,1712005840492,-5022.6564,0.00059166,30]
[321234446,1712005840501,-1965.33,0.00059178,120]
[321234447,1712005840510,-2633.51,0.00059178,120]
[321234448,1712005840520,-500.0,0.00059178,120]
[321234449,1712005840529,-8011.02,0.00059178,120]
[321234450,1712005840538,-500.0,0.00059178,120]
[321234451,1712005840548,-161.317624,0.00059191,30]
[321234452,1712005840557,-161.317624,0.00059191,30]
[321234453,1712005840566,-192.961509,0.00059191,30]
[321234454,1712005840575,-261.76679,0.00059191,30]
[321234455,1712005840585,-153.928821,0.00059191,30]
[321234456,1712005840595,-1211.0,0.000592,4]
[321234457,1712005840604,-4943.6494835,0.00059261,2]
[321234458,1712005840615,-11000.0,0.00059262,2]
[321234459,1712005840624,-357.31250114,0.00059287,38]
[321234460,1712005840634,-372.22993155,0.00059295,2]
[321234461,1712005840645,-151.0,0.00059425,120]
[321234462,1712005840655,-1965.33,0.00059452,120]
[321234463,1712005840665,-2633.51,0.00059452,120]
[321234464,1712005840674,-211.81151583,0.00059452,120]
[321234465,1712005840685,-8011.02,0.00059452,120]
[321234466,1712005840695,-500.0,0.00059452,120]
[321234467,1712005840705,-246.68,0.00059576,2]
[321234468,1712005840715,-246.68,0.00059591,2]
[321234469,1712005840726,-246.68,0.00059607,2]
[321234470,1712005840740,-246.68,0.00059623,2]
[321234471,1712005840762,-246.68,0.00059638,2]
[321234472,1712005840775,-246.68,0.00059654,2]
[321234473,1712005840786,-150.0,0.00059668,14]
[321234474,1712005840798,-246.68,0.0005967,2]
[321234475,1712005840809,-6170.89174053,0.0005968,2]
[321234476,1712005840820,-246.68,0.00059685,2]
[321234477,1712005840831,-150.38124941,0.00059696,120]
[321234478,1712005840841,-246.68,0.00059701,2]
[321234479,1712005840852,-246.68,0.00059717,2]
[321234480,1712005840864,-1965.33,0.00059726,120]
[321234481,1712005840874,-2633.51,0.00059726,120]
[321234482,1712005840885,-8011.02,0.00059726,120]
[321234483,1712005840896,-500.0,0.00059726,120]
[321234484,1712005840907,-246.68,0.00059732,2]
[321234485,1712005840916,-246.68,0.00059748,2]
[321234486,1712005840928,-500.0,0.0005975,90]
[321234487,1712005840937,-500.0,0.0005975,90]
[321234488,1712005840946,-246.68,0.00059764,2]
[321234489,1712005840956,-246.68,0.00059779,2]
[321234490,1712005840965,-1231.83935218,0.00059785,120]
[321234491,1712005840974,-357.31250114,0.00059794,39]
[321234492,1712005840984,-246.68,0.00059795,2]
[321234493,1712005840993,-200.0,0.00059799,120]
[321234494,1712005841003,-280.56,0.000598,14]
[321234495,1712005841012,-3200.0,0.000598,21]
[321234496,1712005841022,-152.47,0.000598,9]
[321234497,1712005841031,-152.47,0.000598,9]
[321234498,1712005841041,-152.47,0.000598,9]
[321234499,1712005841050,-152.47,0.000598,9]
[321234500,1712005841059,-152.47,0.000598,9]
[321234501,1712005841069,-152.47,0.000598,9]
[321234502,1712005841079,-152.47,0.000598,9]
[321234503,1712005841088,-246.68,0.00059811,2]
[321234504,1712005841105,-246.68,0.00059826,2]
[321234505,1712005841114,-246.68,0.00059842,2]
[321234506,1712005841124,-166.66666667,0.00059848,120]
[321234507,1712005841134,-246.68,0.00059858,2]
[321234508,1712005841143,-246.68,0.00059873,2]
[321234509,1712005841153,-200.0,0.0005989,90]
[321234510,1712005841162,-200.0,0.0005989,90]
[321234511,1712005841172,-151.99,0.0005989,120]
[321234512,1712005841183,-151.99,0.0005989,120]
[321234513,1712005841192,-150.0,0.00059899,120]
[321234514,1712005841202,-161.41627732,0.00059899,120]
[321234515,1712005841210,-391.73794021,0.000599,31]
[321234516,1712005841220,-1434683.59908109,0.000599,30]
[321234517,1712005841229,-787268.45198835,0.000599,2]
[321234518,1712005841238,-600.0,0.000599,21]
[321234519,1712005841248,-1248.06285319,0.000599,120]